Cogmind - Beta 13 @@@ ROGUE MODE // 2024.05.15 @ 20:14:06 Player: BatSpy Result: Destroyed by as-41319 with Assembled Blade Performance ------------- Evolutions (0) 0 Regions Visited (2) 400 Robots Destroyed (13) 65 Value Destroyed (224) 224 Prototype IDs (4) 80 Alien Tech Used (0) 0 Bonus (0) 0 TOTAL SCORE: 769 Bonus ------- None Cogmind --------- Core Integrity 0/250 Matter 285/300 Energy 59/100 System Corruption 10% Temperature Warm (108) Movement Core (200) Ox3 Location -10/Mines Parts ------- > --- POWER (1) -------- (None) > --- PROPULSION (2) --- (None) > --- UTILITY (2) ------ Medium Storage Unit > --- WEAPON (2) ------- (None) > --- INVENTORY (10) --- Aluminum Leg Aluminum Leg Heat Sink Particle Gun Datajack Mining Laser Mining Laser Peak State ------------ > --- POWER ------------ Ion Engine > --- PROPULSION ------- Aluminum Leg Aluminum Leg > --- UTILITY ---------- Improved Heat Sink Small Storage Unit > --- WEAPON ----------- Medium Laser Medium Laser > --- INVENTORY -------- Aluminum Leg [Rating: 9] Favorites ----------- Power Ion Engine Engine Ion Engine Propulsion Aluminum Leg Leg Aluminum Leg Utility Small Storage Unit Device Improved Heat Sink Storage Small Storage Unit Processor Signal Interpreter Weapon Medium Laser Energy Gun Medium Laser Build | -11 -10 -10 ------- Run | Yrd Mat Min Slots Evolved . | . . . Power . | . . . Propulsion . | . . . Utility . | . . . Weapon . | . . . Parts Attached 12 | 6 3 3 Power 1 | 1 . . Engine 1 | 1 . . Core . | . . . Reactor . | . . . Propulsion 2 | 2 . . Treads . | . . . Leg 2 | 2 . . Wheel . | . . . Hover . | . . . Flight . | . . . Utility 6 | 1 3 2 Device 3 | . 1 2 Storage 2 | 1 1 . Processor 1 | . 1 . Hackware . | . . . Protection . | . . . Artifact . | . . . Weapon 3 | 2 . 1 Energy Gun 3 | 2 . 1 Energy Cannon . | . . . Ballistic Gun . | . . . Ballistic Cannon . | . . . Launcher . | . . . Special Weapon . | . . . Impact Weapon . | . . . Slashing Weapon . | . . . Piercing Weapon . | . . . Special Melee Weapon . | . . . Unidentified Prototypes . | . . . Parts Lost 8 | . . 8 Power 1 | . . 1 Propulsion 2 | . . 2 Utility 2 | . . 2 Weapon 3 | . . 3 Highest Loss Streak 8 | . . 8 To Critical Strikes . | . . . Average Slot Usage (%) 97 | . 98 91 Engine 14 | . 14 14 Leg 27 | . 28 26 Device 10 | . 11 . Storage 14 | . 14 14 Processor 2 | . . 12 Energy Gun 27 | . 28 24 Naked Turns . | . . . Heaviest Build 20 | 14 20 19 Greatest Support 20 | 20 20 20 Greatest Overweight (x) 3 | . . 3 Average Overweight (x) . | . . . Largest Inventory Capacity 10 | 8 10 10 Average Capacity 8 | 6 8 10 Most Carried 9 | 5 8 9 Average Carried 3 | 1 3 8 Final Capacity 10 | 8 10 10 Final Carried 8 | . 8 7 Class Distribution -------------------- 100% | Mutant Dominant Class ---------------- Mutant | -10/Materials Mutant | -10/Mines Resources | -11 -10 -10 ----------- Run | Yrd Mat Min Matter Collected 290 | 208 82 . Remotely . | . . . Salvage Created 351 | . 285 66 Parts 30 | . 24 6 Haulers Intercepted . | . . . Recyclers Shooed . | . . . Parts Field Recycled . | . . . Retrieved Matter . | . . . Parts Self-Destructed . | . . . Prevented . | . . . Kills | -11 -10 -10 ------- Run | Yrd Mat Min Combat Hostiles Destroyed 10 | . 6 4 Guns 10 | . 6 4 Classes Destroyed 5 | . 4 1 Worker 1 | . 1 . Watcher 3 | . 3 . Swarmer 6 | . 3 3 Grunt 3 | . 3 . Assembled 1 | . . 1 Best Kill Streak 4 | . 4 3 Combat Bots Only 3 | . 3 3 Max Kills in Single Turn 2 | . 1 2 Gunslinging 1 | . . 1 Exploded . | . . . Melee . | . . . Uniques/NPCs Destroyed . | . . . Combat | -11 -10 -10 -------- Run | Yrd Mat Min Hostile Shots Fired 74 | . 28 46 Missed 12 | . 3 9 Damage Taken 869 | . 282 587 Core 265 | . 63 202 Absorbed by Shields . | . . . Core Remaining (%) 100 | 100 . . Volleys Fired 30 | . 23 7 Largest 2 | . 2 2 Hottest 100 | . 100 100 Shots Fired 58 | . 46 12 Gun 58 | . 46 12 Cannon . | . . . Launcher . | . . . Special . | . . . Kinetic . | . . . Thermal 58 | . 46 12 Explosive . | . . . Electromagnetic . | . . . Robot Hit Streak 8 | . 8 3 Robot Miss Streak 4 | . 4 1 Penetration Max . | . . . Secondary Targets 3 | . 1 2 Max Gunslinging Chain 1 | . 1 1 Shots Hit Robots 34 | . 27 7 Core Hits 19 | . 14 5 Critical Kills . | . . . Critical Parts Destroyed . | . . . Critical Strikes 4 | . 4 . Burn 4 | . 4 . Melee Attacks . | . . . Impact . | . . . Slashing . | . . . Piercing . | . . . Sneak Attacks . | . . . Combat Hostiles . | . . . Follow-up Attacks . | . . . Damage Inflicted 431 | . 333 98 Guns 431 | . 333 98 Cannons . | . . . Explosions . | . . . Melee . | . . . Ramming . | . . . Kinetic . | . . . Thermal 431 | . 333 98 Explosive . | . . . Electromagnetic . | . . . Impact . | . . . Slashing . | . . . Piercing . | . . . Highest Corruption 10 | . . 10 Average Corruption 4 | . . 4 Corruption Purged . | . . . Corruption Blocked . | . . . Overload Shots . | . . . Overflow Damage . | . . . Projectiles . | . . . Explosions . | . . . Melee . | . . . Knockbacks . | . . . Impact . | . . . Kinetic . | . . . Secondary . | . . . Self-Inflicted Damage . | . . . Shots . | . . . Rammed . | . . . Targets Rammed . | . . . Kicked . | . . . Crushed . | . . . Highest Temperature 198 | . 198 147 Average Temperature 70 | . 71 70 Received Heat Transfer 244 | . 84 160 Siege Activations . | . . . Robots Corrupted . | . . . Combat Hostiles . | . . . Parts Fried . | . . . Impact Corruptions . | . . . Robots Melted . | . . . Combat Hostiles . | . . . Parts Melted 2 | . 2 . Heat Transferred 1591 | . 1295 296 Parts Sabotaged . | . . . Parts Stolen . | . . . Parts Stripped . | . . . Power Chain Reactions . | . . . Alert | -11 -10 -10 ------- Run | Yrd Mat Min Peak Influence 224 | . 224 88 Initial 18 | . . 18 Average 77 | . 89 59 Maximum Alert Level 1 | . 1 . Low Security (%) 88 | 100 84 100 Level 1 11 | . 15 . Level 2 . | . . . Level 3 . | . . . Level 4 . | . . . Level 5 . | . . . High Security . | . . . Max Security . | . . . Squads Dispatched 1 | . 1 . Investigation 1 | . 1 . Extermination . | . . . Reinforcement . | . . . Assault . | . . . Garrison . | . . . Intercept . | . . . Searches Triggered . | . . . Construction Impeded . | . . . Haulers Reinforced . | . . . Active Scanning Responses . | . . . Cargo Convoy Interrupts . | . . . Stealth | -11 -10 -10 --------- Run | Yrd Mat Min Distress Signals . | . . . Communications Jammed . | . . . Distress Signals . | . . . Times Spotted 31 | . 11 20 Peak Tracking Total 19 | . 2 19 Tactical Retreats . | . . . Traps | -11 -10 -10 ------- Run | Yrd Mat Min Traps Triggered 2 | . 2 . Indirectly . | . . . Trap Hack Attempts . | . . . Triggered . | . . . Disarmed . | . . . Reprogrammed . | . . . Reused . | . . . Traps Extracted . | . . . Installed . | . . . Triggered . | . . . Machines | -11 -10 -10 ---------- Run | Yrd Mat Min Machines Disabled . | . . . Max in Single Turn . | . . . Machines Repaired . | . . . Machines Dismantled . | . . . Machines Sabotaged . | . . . Overloaded Fab Kills . | . . . Hacking | -11 -10 -10 --------- Run | Yrd Mat Min Machines Accessed 4 | . 4 . Terminals 4 | . 4 . Fabricators . | . . . Repair Stations . | . . . Recycling Units . | . . . Scanalyzers . | . . . Garrison Access . | . . . Total Hacks 9 | . 9 . Successful 3 | . 3 . Failed 6 | . 6 . Catastrophic . | . . . Database Lockouts . | . . . Manual . | . . . Terminals 9 | . 9 . Fabricators . | . . . Repair Stations . | . . . Recycling Units . | . . . Scanalyzers . | . . . Garrison Access . | . . . Terminal Hacks 3 | . 3 . Prototype ID Bank 2 | . 2 . Zone Layout 1 | . 1 . Fabricator Hacks . | . . . Repair Station Hacks . | . . . Recycling Unit Hacks . | . . . Scanalyzer . | . . . Garrison Access Hacks . | . . . Unauthorized Hacks . | . . . Terminals . | . . . Fabricators . | . . . Repair Stations . | . . . Recycling Units . | . . . Scanalyzers . | . . . Garrison Access . | . . . Data Cores Recovered . | . . . Used . | . . . Hacking Detections 3 | . 3 . Full Trace Events . | . . . Feedback Events . | . . . Feedback Blocked . | . . . Robot Schematics Acquired . | . . . Robots Built . | . . . Authchips . | . . . Time . | . . . Total Robot Build Rating . | . . . Part Schematics Acquired . | . . . Parts Built . | . . . Authchips . | . . . Time . | . . . Total Part Build Rating . | . . . Parts Repaired . | . . . Time . | . . . Parts Recycled . | . . . Recycled Matter . | . . . Retrieved Matter . | . . . Retrieved Components . | . . . Parts Scanalyzed . | . . . Part Schematics Acquired . | . . . Parts Damaged . | . . . Bothacking | -11 -10 -10 ------------ Run | Yrd Mat Min Used RIF Installer . | . . . Robots Hacked . | . . . Non-combat . | . . . Combat . | . . . Robot Hacks Applied . | . . . Relay Couplers Released . | . . . Fabnet Peak Effective % . | . . . Robots Rewired . | . . . Allies Hacked . | . . . Hacks Repelled . | . . . Allies | -11 -10 -10 -------- Run | Yrd Mat Min Total Allies . | . . . Largest Group . | . . . Highest-Rated Group . | . . . Highest-Rated Ally . | . . . Total Orders . | . . . Ally Attacks . | . . . Total Damage . | . . . Kills . | . . . Allies Corrupted . | . . . Allies Melted . | . . . Intel | -11 -10 -10 ------- Run | Yrd Mat Min Robot Analysis Total . | . . . Derelict Logs Recovered . | . . . Drone Launches . | . . . Drone Recoveries . | . . . Exploration | -11 -10 -10 ------------- Run | Yrd Mat Min Turns Passed 607 | 57 477 73 Spaces Moved 408 | 50 320 38 Core 21 | 20 . 1 Treads . | . . . Legs 387 | 30 320 37 Wheels . | . . . Hover . | . . . Flight . | . . . Fastest Speed 50 | 50 120 120 Average Speed 116 | 92 120 123 Slowest Speed 200 | 120 120 200 Overloaded Moves . | . . . Propulsion Burnouts . | . . . Robots Hopped . | . . . Cave-ins Triggered . | . . . Exploration Rate (%) 25 | 4 55 18 Regions Visited 2 Branch Regions 1 Pre-discovered Areas . | . . . Known Exits Taken 1 | . 1 . Unknown Exits Taken 1 | 1 . . Scrap Searched 1 | . . 1 Spaces Dug . | . . . Terrain Destroyed . | . . . Melee . | . . . Projectile . | . . . AOE . | . . . Terrain Rammed . | . . . Walls Destroyed . | . . . Machines Disabled . | . . . Actions | -11 -10 -10 --------- Run | Yrd Mat Min Total 480 | 63 366 51 Wait 12 | . 10 2 Move 406 | 49 319 38 Hop . | . . . Pick Up 18 | 7 10 1 Fast Attach . | . . . Attach 9 | 6 1 2 Detach . | . . . Swap 3 | . 2 1 Drop 2 | 1 1 . Fire 30 | . 23 7 Melee . | . . . Ram . | . . . Kick . | . . . Crush . | . . . Escape Stasis . | . . . Rewire . | . . . Trap . | . . . Miscellaneous . | . . . Route ------- -11/Scrapyard -10/Materials (discovered 2 exits: [*Mat] / *Min) -10/Mines History --------- Turn | Location | Event 8 | -11/Scrapyard | Discovered new exit (range 14) 58 | -11/Scrapyard | Entered Materials 242 | -10/Materials | Discovered new exit (range 16) 303 | -10/Materials | Build established: Mutant 384 | -10/Materials | Discovered new exit (range 8) 521 | -10/Materials | Identified exit to Mines 535 | -10/Materials | Entered Mines 540 | -10/Mines | Met a Derelict bent on vengeance 584 | -10/Mines | Assembled infested the area 602 | -10/Mines | Core integrity fell below 50% 608 | -10/Mines | Core integrity fell below 20% 608 | -10/Mines | System corruption reached 10% 608 | -10/Mines | Destroyed by as-41319 with Assembled Blade Last Messages --------------- S-10 Pest destroyed. ALERT: Infestation in the mines, dispatching Demolisher response squad. U-05 Engineer destroyed. R-06 Scavenger collects Lgt. Assault Rifle. Med. Laser destroyed. Signal Interpreter destroyed. System corrupted by crushing effect (+2). Knocked back. Aluminum Leg destroyed. as-77684 destroyed. Switching to secondary target: as-68621. R-06 Scavenger destroyed. Med. Laser destroyed. System corrupted by crushing effect (+4). Ion Engine destroyed. Aluminum Leg destroyed. Med. Laser destroyed. Imp. Heat Sink destroyed. System corrupted by crushing effect (+4). Map ----- +----------------------------------------------------+ | | | | | | | | | ??????????????????????????????????????????? | | ??????????????????????????????????????????? | | ??????????????????????????????????????????? | | ?????????????????????????????##?#####?????? | | ????????????????????????????## ## ####??? | | ????????????????????????????# ##?? | | ????????????????????????????# #?? | | ?????????????????????????????# #??? | | ?????????????????????????????## ##! #??? | | ??????????????????????????????## ###]%#??? | | ??????????????????????#############?# #??? | | ?????????????????????## ####??# #??? | | ?????????????????##### #### #??? | | ????????????????## = ##?? | | ????????????????# *%=%* #?? | | ????????????????# *% #?? | | ?????????????????# ##?? | | ?????????????????# ##??? | | ?????????????????# ###???? | | ?????????????????## aa ##?????? | | ???????????######### aaaa #??????? | | ??????????# %a@ #??????? | | ?????????????####### aaa#### #??????? | | ???????????????????# ##a#??## ##??????? | | ???????????????????# ## #???# #???????? | | ??????????????????# ## #??? #???????? | | ?????????????????# ??? #??????? | | ?????????????????# ?? #??????? | | ?????????????????## ####?# ##??????? | | ??????????????????#!! ?????# ##???????? | | ??????????????????#!%= ?????# ##????????? | | ?????????????????? = ??????# #??????????? | | ?????????????????? #???????????????????? | | ??????????????????# ????????????????????? | | ??????????????????# #????????????????????? | | ??????????????????# ?????????????????????? | | ??????????????????? ?????????????????????? | | ??????????????????????????????????????????? | | ??????????????????????????????????????????? | | ??????????????????????????????????????????? | | ??????????????????????????????????????????? | | ??????????????????????????????????????????? | | ??????????????????????????????????????????? | | ??????????????????????????????????????????? | | ??????????????????????????????????????????? | | ??????????????????????????????????????????? | +----------------------------------------------------+ Best States ------------- Heat Dissipation 39 Energy Generation 10 Energy Capacity 250 Matter Stores 300 Matter Capacity 300 Sight Range 16 Terrain Scan Density 10 Evasion (%) 55 Item Schematics ----------------- None Robot Schematics ------------------ None Fabricated ------------ Nothing Alien Tech Used ----------------- None Achievements -------------- None Challenges ------------ None Game ------ Seed NodeTrapLance Manual? 0 Play Time 00:07:43 Cumulative 6.3 hours Start 2024.05.15 @ 20:07:32 End 2024.05.15 @ 20:14:06 Sessions 1 Manual Loads 0 Difficulty Rogue Special Mode None Game No. 13 Rogue 13 Adventurer 0 Explorer 0 Win Type - Total 0 Types 0/0/0/0/0/0/0/0/0 Lore% 6 Gallery% 15 Achievement% 11 Wizard Run 0 Options --------- Layout 1 ASCII 0 Keyboard 0 Movement Mouse Keybinds 0 Fullscreen 2 Font 32/SmallcapsGlow Map View 50x35 Zoom Use 0% Tactical HUD 0 Map Filters NONE Filters NONE Steam 1 RUN: a3eccc7f-12f7-4acb-8871-b841866e9c8a